Workbook

Sheet 使用例
A1: 生命保険数理の計算で便利な関数のマクロ
A4: マクロ名 | B4: 機能 | I4: 使用例 | L4: マクロでの計算例 | M4: VLOOKUPでの計算例
A5: LPV | B5: 縦に並んだ計算基数 Dx, Nx (x=0,1,2,…)に対して、x歳n年の期始払有期生命年金現価を計算する。 | I5: 期始払有期年金現価（年払） | L5: =LPV($C$22:$C$132,$D$22:$D$132,$K$23,$K$24) -> 9.747245 | M5: =(VLOOKUP($K$23,$A$22:$H$132,4,FALSE)-VLOOKUP($K$23+$K$24,$A$22:$H$132,4,FALSE))/VLOOKUP($K$23,$A$22:$H$132,3,FALSE) -> 9.747245
B6: 年間の分割支払の回数kを指定できる。 | I6: 期始払有期年金現価（月払） | L6: =LPV($C$22:$C$132,$D$22:$D$132,$K$23,$K$24,12) -> 9.721422 | M6: =(VLOOKUP($K$23,$A$22:$H$132,4,FALSE)-VLOOKUP($K$23+$K$24,$A$22:$H$132,4,FALSE))/VLOOKUP($K$23,$A$22:$H$132,3,FALSE)-11/24*(1-VLOOKUP($K$23+$K$24,$A$22:$H$132,3,FALSE)/VLOOKUP($K$23,$A$22:$H$132,3,FALSE)) -> 9.721422
A7: SPDB | B7: 縦に並んだ計算基数 Dx, Mx (x=0,1,2,…)に対して、x歳n年の定期保険等の一時払純保険料を計算する。 | I7: 定期保険の一時払純保険料 | L7: =SPDB($C$22:$C$132,$G$22:$G$132,$K$23,$K$24) -> 0.007865 | M7: =(VLOOKUP($K$23,$A$22:$H$132,7,FALSE)-VLOOKUP($K$23+$K$24,$A$22:$H$132,7,FALSE))/VLOOKUP($K$23,$A$22:$H$132,3,FALSE) -> 0.007865
B8: nを省略すると 保険期間終身となる。 | I8: 終身保険の一時払純保険料 | L8: =SPDB($C$22:$C$132,$G$22:$G$132,$K$23) -> 0.774961 | M8: =VLOOKUP($K$23,$A$22:$H$132,7,FALSE)/VLOOKUP($K$23,$A$22:$H$132,3,FALSE) -> 0.774961
B9: Mxに代えて「ΣDx × 入院発生率 ×入院日数」とすると、医療保険の一時払純保険料も計算できる。 | I9: 1年定期保険の一時払純保険料 | L9: =SPDB($C$22:$C$132,$F$22:$F$132,$K$23) -> 0.000678 | M9: =VLOOKUP($K$23,$A$22:$H$132,6,FALSE)/VLOOKUP($K$23,$A$22:$H$132,3,FALSE) -> 0.000678
A10: SPLB | B10: 縦に並んだ計算基数 Dx (x=0,1,2,…)に対して、x歳n年の生存保険の一時払純保険料を計算する。 | I10: 生存保険の一時払純保険料 | L10: =SPLB($C$22:$C$132,$K$23,$K$24) -> 0.943661 | M10: =VLOOKUP($K$23+$K$24,$A$22:$H$132,3,FALSE)/VLOOKUP($K$23,$A$22:$H$132,3,FALSE) -> 0.943661
A11: SPITDT | B11: 縦に並んだ計算基数 Dx, Mx, Rx (x=0,1,2,…)に対して、x歳n年の逓増定期保険または逓減定期保険の | I11: 逓増定期保険の一時払純保険料（毎年逓増） | L11: =SPITDT($C$22:$C$132,$G$22:$G$132,$H$22:$H$132,$K$23,$K$24,1,1) -> 0.046342 | M11: =(VLOOKUP($K$23,$A$22:$H$132,8,FALSE)-VLOOKUP($K$23+$K$24,$A$22:$H$132,8,FALSE)-$K$24*VLOOKUP($K$23+$K$24,$A$22:$H$132,7,FALSE))/VLOOKUP($K$23,$A$22:$H$132,3,FALSE) -> 0.046342
B12: 一時払純保険料を計算する。 | I12: 逓増定期保険の一時払純保険料（毎月逓増） | L12: =SPITDT($C$22:$C$132,$G$22:$G$132,$H$22:$H$132,$K$23,$K$24,1,1,12) -> 0.042737 | M12: =(VLOOKUP($K$23,$A$22:$H$132,8,FALSE)-VLOOKUP($K$23+$K$24,$A$22:$H$132,8,FALSE)-$K$24*VLOOKUP($K$23+$K$24,$A$22:$H$132,7,FALSE)-11/24*(VLOOKUP($K$23,$A$22:$H$132,7,FALSE)-VLOOKUP($K$23+$K$24,$A$22:$H$132,7,FALSE)))/VLOOKUP($K$23,$A$22:$H$132,3,FALSE) -> 0.042737
B13: 初年度の保険金額s、毎年の保険金額の増減幅d、年間の増減の回数kを指定できる。 | I13: 逓減定期保険の一時払純保険料（毎年逓減） | L13: =SPITDT($C$22:$C$132,$G$22:$G$132,$H$22:$H$132,$K$23,$K$24,$K$24,-1) -> 0.040177 | M13: =(($K$24+1)*VLOOKUP($K$23,$A$22:$H$132,7,FALSE)-VLOOKUP($K$23,$A$22:$H$132,8,FALSE)+VLOOKUP($K$23+$K$24+1,$A$22:$H$132,8,FALSE))/VLOOKUP($K$23,$A$22:$H$132,3,FALSE) -> 0.040177
I14: 逓減定期保険の一時払純保険料（毎月逓減） | L14: =SPITDT($C$22:$C$132,$G$22:$G$132,$H$22:$H$132,$K$23,$K$24,$K$24,-1,12) -> 0.036572 | M14: =(($K$24+1)*VLOOKUP($K$23,$A$22:$H$132,7,FALSE)-VLOOKUP($K$23,$A$22:$H$132,8,FALSE)+VLOOKUP($K$23+$K$24+1,$A$22:$H$132,8,FALSE)-11/24*(VLOOKUP($K$23,$A$22:$H$132,7,FALSE)-VLOOKUP($K$23+$K$24,$A$22:$H$132,7,FALSE)))/VLOOKUP($K$23,$A$22:$H$132,3,FALSE) -> 0.036572
A15: XDIV | B15: 縦に並んだ数列 Ax, Bx (x=0,1,2,…)と特定のx,yに対して ( Bx - By ) / Ax を計算する。 | I15: 定期保険の一時払純保険料 | L15: =XDIV($C$22:$C$132,$G$22:$G$132,$K$23,$K$23+$K$24) -> 0.007865 | M15: =(VLOOKUP($K$23,$A$22:$H$132,7,FALSE)-VLOOKUP($K$23+$K$24,$A$22:$H$132,7,FALSE))/VLOOKUP($K$23,$A$22:$H$132,3,FALSE) -> 0.007865
B16: yを省略すると Bx / Ax を計算できる。 | I16: 終身保険の一時払純保険料 | L16: =XDIV($C$22:$C$132,$G$22:$G$132,$K$23) -> 0.774961 | M16: =VLOOKUP($K$23,$A$22:$H$132,7,FALSE)/VLOOKUP($K$23,$A$22:$H$132,3,FALSE) -> 0.774961
I17: 1年定期保険の一時払純保険料 | L17: =XDIV($C$22:$C$132,$F$22:$F$132,$K$23) -> 0.000678 | M17: =VLOOKUP($K$23,$A$22:$H$132,6,FALSE)/VLOOKUP($K$23,$A$22:$H$132,3,FALSE) -> 0.000678
A18: VDIV | B18: 縦に並んだ数列 Ax (x=0,1,2,…)と特定のx,yに対して Ay / Ax を計算する。 | I18: 生存保険の一時払純保険料 | L18: =VDIV($C$22:$C$132,$K$23,$K$23+$K$24) -> 0.943661 | M18: =VLOOKUP($K$23+$K$24,$A$22:$H$132,3,FALSE)/VLOOKUP($K$23,$A$22:$H$132,3,FALSE) -> 0.943661
A21: 年齢 x | B21: 予定死亡率 qx | C21: Dx | D21: Nx | E21: Sx | F21: Cx | G21: Mx | H21: Rx
A22: 0 | B22: 0.00081 | C22: 100,000 | D22: =C22+D23 -> 6,664,539 | E22: =D22+E23 -> 261,519,185 | F22: =C22*B22/SQRT(1+$K$26) -> 81 | G22: =F22+G23 -> 67,010 | H22: =G22+H23 -> 5,376,840
A23: =A22+1 -> 1 | B23: 0.00056 | C23: =C22*(1-B22)/(1+$K$26) -> 99,422 | D23: =C23+D24 -> 6,564,539 | E23: 254,854,646 | F23: 56 | G23: =F23+G24 -> 66,929 | H23: 5,309,830 | J23: 年齢 x | K23: 30
A24: =A23+1 -> 2 | B24: 0.00036 | C24: 98,872 | D24: =C24+D25 -> 6,465,117 | E24: 248,290,107 | F24: 36 | G24: =F24+G25 -> 66,874 | H24: 5,242,901 | J24: 保険期間 n | K24: 10
A25: 3 | B25: 0.00022 | C25: 98,345 | D25: =C25+D26 -> 6,366,245 | E25: 241,824,990 | F25: 22 | G25: =F25+G26 -> 66,838 | H25: 5,176,027
A26: 4 | B26: 0.00014 | C26: 97,834 | D26: =C26+D27 -> 6,267,901 | E26: 235,458,745 | F26: 14 | G26: =F26+G27 -> 66,817 | H26: 5,109,189 | J26: 予定利率 i | K26: 0.50%
A27: 5 | B27: 0.00010 | C27: 97,333 | D27: =C27+D28 -> 6,170,067 | E27: 229,190,845 | F27: 10 | G27: =F27+G28 -> 66,803 | H27: 5,042,373
A28: 6 | B28: 0.00009 | C28: 96,839 | D28: =C28+D29 -> 6,072,733 | E28: 223,020,778 | F28: 9 | G28: =F28+G29 -> 66,793 | H28: 4,975,570
A29: 7 | B29: 0.00009 | C29: 96,349 | D29: =C29+D30 -> 5,975,894 | E29: 216,948,044 | F29: 9 | G29: =F29+G30 -> 66,785 | H29: 4,908,777
A30: 8 | B30: 0.00009 | C30: 95,861 | D30: =C30+D31 -> 5,879,545 | E30: 210,972,150 | F30: 9 | G30: =F30+G31 -> 66,776 | H30: 4,841,992
A31: 9 | B31: 0.00009 | C31: 95,375 | D31: =C31+D32 -> 5,783,684 | E31: 205,092,605 | F31: 9 | G31: =F31+G32 -> 66,767 | H31: 4,775,216
A32: 10 | B32: 0.00010 | C32: 94,892 | D32: =C32+D33 -> 5,688,309 | E32: 199,308,921 | F32: 9 | G32: =F32+G33 -> 66,759 | H32: 4,708,449
A33: 11 | B33: 0.00010 | C33: 94,411 | D33: =C33+D34 -> 5,593,416 | E33: 193,620,612 | F33: 9 | G33: =F33+G34 -> 66,749 | H33: 4,641,690
A34: 12 | B34: 0.00011 | C34: 93,932 | D34: =C34+D35 -> 5,499,005 | E34: 188,027,196 | F34: 10 | G34: =F34+G35 -> 66,740 | H34: 4,574,941
A35: 13 | B35: 0.00013 | C35: 93,454 | D35: =C35+D36 -> 5,405,073 | E35: 182,528,191 | F35: 12 | G35: =F35+G36 -> 66,729 | H35: 4,508,201
A36: 14 | B36: 0.00017 | C36: 92,977 | D36: =C36+D37 -> 5,311,619 | E36: 177,123,118 | F36: 16 | G36: =F36+G37 -> 66,717 | H36: 4,441,472
A37: 15 | B37: 0.00023 | C37: 92,499 | D37: =C37+D38 -> 5,218,642 | E37: 171,811,498 | F37: 21 | G37: =F37+G38 -> 66,702 | H37: 4,374,755
A38: 16 | B38: 0.00030 | C38: 92,018 | D38: =C38+D39 -> 5,126,143 | E38: 166,592,856 | F38: 28 | G38: =F38+G39 -> 66,680 | H38: 4,308,053
A39: 17 | B39: 0.00038 | C39: 91,532 | D39: =C39+D40 -> 5,034,126 | E39: 161,466,713 | F39: 35 | G39: =F39+G40 -> 66,653 | H39: 4,241,373
A40: 18 | B40: 0.00046 | C40: 91,042 | D40: =C40+D41 -> 4,942,593 | E40: 156,432,588 | F40: 42 | G40: =F40+G41 -> 66,618 | H40: 4,174,720
A41: 19 | B41: 0.00053 | C41: 90,548 | D41: =C41+D42 -> 4,851,551 | E41: 151,489,994 | F41: 48 | G41: =F41+G42 -> 66,576 | H41: 4,108,102
A42: 20 | B42: 0.00059 | C42: 90,049 | D42: =C42+D43 -> 4,761,004 | E42: 146,638,443 | F42: 53 | G42: =F42+G43 -> 66,529 | H42: 4,041,525
A43: 21 | B43: 0.00063 | C43: 89,549 | D43: =C43+D44 -> 4,670,954 | E43: 141,877,440 | F43: 56 | G43: =F43+G44 -> 66,476 | H43: 3,974,997
A44: 22 | B44: 0.00066 | C44: 89,047 | D44: =C44+D45 -> 4,581,406 | E44: 137,206,485 | F44: 59 | G44: =F44+G45 -> 66,419 | H44: 3,908,521
A45: 23 | B45: 0.00068 | C45: 88,545 | D45: =C45+D46 -> 4,492,359 | E45: 132,625,080 | F45: 60 | G45: =F45+G46 -> 66,361 | H45: 3,842,102
A46: 24 | B46: 0.00068 | C46: 88,045 | D46: =C46+D47 -> 4,403,813 | E46: 128,132,721 | F46: 60 | G46: =F46+G47 -> 66,301 | H46: 3,775,741
A47: 25 | B47: 0.00067 | C47: 87,547 | D47: =C47+D48 -> 4,315,768 | E47: 123,728,908 | F47: 59 | G47: =F47+G48 -> 66,241 | H47: 3,709,441
A48: 26 | B48: 0.00065 | C48: 87,053 | D48: =C48+D49 -> 4,228,221 | E48: 119,413,139 | F48: 56 | G48: =F48+G49 -> 66,182 | H48: 3,643,200
A49: 27 | B49: 0.00064 | C49: 86,564 | D49: =C49+D50 -> 4,141,168 | E49: 115,184,918 | F49: 55 | G49: =F49+G50 -> 66,126 | H49: 3,577,018
A50: 28 | B50: 0.00064 | C50: 86,078 | D50: =C50+D51 -> 4,054,604 | E50: 111,043,750 | F50: 55 | G50: =F50+G51 -> 66,071 | H50: 3,510,892
A51: 29 | B51: 0.00066 | C51: 85,595 | D51: =C51+D52 -> 3,968,525 | E51: 106,989,147 | F51: 56 | G51: =F51+G52 -> 66,016 | H51: 3,444,821
A52: 30 | B52: 0.00068 | C52: 85,113 | D52: =C52+D53 -> 3,882,930 | E52: 103,020,621 | F52: 58 | G52: =F52+G53 -> 65,959 | H52: 3,378,805
A53: 31 | B53: 0.00069 | C53: 84,632 | D53: =C53+D54 -> 3,797,817 | E53: 99,137,691 | F53: 58 | G53: =F53+G54 -> 65,902 | H53: 3,312,846
A54: 32 | B54: 0.00070 | C54: 84,153 | D54: =C54+D55 -> 3,713,185 | E54: 95,339,873 | F54: =C54*B54/SQRT(1+$K$26) -> 59 | G54: =F54+G55 -> 65,843 | H54: 3,246,945
A55: 33 | B55: 0.00072 | C55: =C54*(1-B54)/(1+$K$26) -> 83,676 | D55: =C55+D56 -> 3,629,032 | E55: 91,626,688 | F55: 60 | G55: =F55+G56 -> 65,785 | H55: 3,181,101
A56: 34 | B56: 0.00074 | C56: 83,199 | D56: =C56+D57 -> 3,545,357 | E56: 87,997,656 | F56: 61 | G56: =F56+G57 -> 65,724 | H56: 3,115,317
A57: 35 | B57: 0.00077 | C57: 82,724 | D57: =C57+D58 -> 3,462,157 | E57: 84,452,299 | F57: 64 | G57: =F57+G58 -> 65,663 | H57: 3,049,592
A58: 36 | B58: 0.00083 | C58: 82,249 | D58: =C58+D59 -> 3,379,433 | E58: 80,990,142 | F58: 68 | G58: =F58+G59 -> 65,600 | H58: 2,983,929
A59: 37 | B59: 0.00090 | C59: 81,772 | D59: =C59+D60 -> 3,297,184 | E59: 77,610,709 | F59: 73 | G59: =F59+G60 -> 65,531 | H59: 2,918,330
A60: 38 | B60: 0.00099 | C60: 81,292 | D60: =C60+D61 -> 3,215,412 | E60: 74,313,525 | F60: 80 | G60: =F60+G61 -> 65,458 | H60: 2,852,798
A61: 39 | B61: 0.00109 | C61: 80,808 | D61: =C61+D62 -> 3,134,120 | E61: 71,098,113 | F61: 88 | G61: =F61+G62 -> 65,378 | H61: 2,787,340
A62: 40 | B62: 0.00118 | C62: 80,318 | D62: =C62+D63 -> 3,053,312 | E62: 67,963,993 | F62: 95 | G62: =F62+G63 -> 65,290 | H62: 2,721,962
A63: 41 | B63: 0.00129 | C63: 79,824 | D63: =C63+D64 -> 2,972,994 | E63: 64,910,681 | F63: 103 | G63: =F63+G64 -> 65,195 | H63: 2,656,673
A64: 42 | B64: 0.00140 | C64: 79,324 | D64: =C64+D65 -> 2,893,170 | E64: 61,937,686 | F64: 111 | G64: =F64+G65 -> 65,093 | H64: 2,591,477
A65: 43 | B65: 0.00151 | C65: 78,819 | D65: =C65+D66 -> 2,813,846 | E65: 59,044,516 | F65: 119 | G65: =F65+G66 -> 64,982 | H65: 2,526,385
A66: 44 | B66: 0.00163 | C66: 78,309 | D66: =C66+D67 -> 2,735,027 | E66: 56,230,670 | F66: 127 | G66: =F66+G67 -> 64,863 | H66: 2,461,403
A67: 45 | B67: 0.00177 | C67: 77,792 | D67: =C67+D68 -> 2,656,718 | E67: 53,495,643 | F67: 137 | G67: =F67+G68 -> 64,736 | H67: 2,396,540
A68: 46 | B68: 0.00194 | C68: 77,268 | D68: =C68+D69 -> 2,578,926 | E68: 50,838,925 | F68: 150 | G68: =F68+G69 -> 64,598 | H68: 2,331,804
A69: 47 | B69: 0.00214 | C69: 76,734 | D69: =C69+D70 -> 2,501,658 | E69: 48,259,998 | F69: 164 | G69: =F69+G70 -> 64,449 | H69: 2,267,206
A70: 48 | B70: 0.00236 | C70: 76,189 | D70: =C70+D71 -> 2,424,924 | E70: 45,758,340 | F70: 179 | G70: =F70+G71 -> 64,285 | H70: 2,202,757
A71: 49 | B71: 0.00259 | C71: 75,631 | D71: =C71+D72 -> 2,348,734 | E71: 43,333,416 | F71: 195 | G71: =F71+G72 -> 64,106 | H71: 2,138,471
A72: 50 | B72: 0.00285 | C72: 75,060 | D72: =C72+D73 -> 2,273,103 | E72: 40,984,682 | F72: 213 | G72: =F72+G73 -> 63,910 | H72: 2,074,366
A73: 51 | B73: 0.00311 | C73: 74,474 | D73: =C73+D74 -> 2,198,043 | E73: 38,711,579 | F73: 231 | G73: =F73+G74 -> 63,697 | H73: 2,010,455
A74: 52 | B74: 0.00337 | C74: 73,873 | D74: =C74+D75 -> 2,123,569 | E74: 36,513,536 | F74: 248 | G74: =F74+G75 -> 63,466 | H74: 1,946,758
A75: =A74+1 -> 53 | B75: 0.00364 | C75: 73,258 | D75: =C75+D76 -> 2,049,696 | E75: 34,389,967 | F75: 266 | G75: =F75+G76 -> 63,218 | H75: 1,883,292
A76: 54 | B76: 0.00391 | C76: 72,628 | D76: =C76+D77 -> 1,976,439 | E76: 32,340,271 | F76: 283 | G76: =F76+G77 -> 62,952 | H76: 1,820,075
A77: 55 | B77: 0.00422 | C77: 71,984 | D77: =C77+D78 -> 1,903,811 | E77: 30,363,832 | F77: 303 | G77: =F77+G78 -> 62,668 | H77: 1,757,123
A78: =A77+1 -> 56 | B78: 0.00458 | C78: 71,324 | D78: =C78+D79 -> 1,831,827 | E78: 28,460,021 | F78: 326 | G78: =F78+G79 -> 62,365 | H78: 1,694,455
A79: =A78+1 -> 57 | B79: 0.00500 | C79: 70,644 | D79: =C79+D80 -> 1,760,503 | E79: 26,628,195 | F79: 352 | G79: =F79+G80 -> 62,039 | H79: 1,632,090
A80: 58 | B80: 0.00546 | C80: 69,941 | D80: =C80+D81 -> 1,689,860 | E80: 24,867,691 | F80: 381 | G80: =F80+G81 -> 61,687 | H80: 1,570,050
A81: 59 | B81: 0.00597 | C81: 69,213 | D81: =C81+D82 -> 1,619,919 | E81: 23,177,832 | F81: 412 | G81: =F81+G82 -> 61,306 | H81: 1,508,363
A82: 60 | B82: 0.00653 | C82: 68,457 | D82: =C82+D83 -> 1,550,706 | E82: 21,557,913 | F82: 446 | G82: =F82+G83 -> 60,894 | H82: 1,447,057
A83: 61 | B83: 0.00716 | C83: 67,672 | D83: =C83+D84 -> 1,482,249 | E83: 20,007,207 | F83: 483 | G83: =F83+G84 -> 60,448 | H83: 1,386,163
A84: 62 | B84: 0.00785 | C84: 66,853 | D84: =C84+D85 -> 1,414,577 | E84: 18,524,958 | F84: 523 | G84: =F84+G85 -> 59,965 | H84: 1,325,715
A85: 63 | B85: 0.00858 | C85: 65,998 | D85: =C85+D86 -> 1,347,724 | E85: 17,110,382 | F85: 565 | G85: =F85+G86 -> 59,441 | H85: 1,265,750
A86: 64 | B86: 0.00935 | C86: 65,107 | D86: =C86+D87 -> 1,281,725 | E86: 15,762,658 | F86: =C86*B86/SQRT(1+$K$26) -> 607 | G86: =F86+G87 -> 58,876 | H86: 1,206,309
A87: 65 | B87: 0.01015 | C87: =C86*(1-B86)/(1+$K$26) -> 64,177 | D87: =C87+D88 -> 1,216,619 | E87: 14,480,933 | F87: 650 | G87: =F87+G88 -> 58,269 | H87: 1,147,432
A88: 66 | B88: 0.01100 | C88: 63,209 | D88: =C88+D89 -> 1,152,442 | E88: 13,264,314 | F88: 694 | G88: =F88+G89 -> 57,619 | H88: 1,089,163
A89: 67 | B89: 0.01190 | C89: 62,203 | D89: =C89+D90 -> 1,089,232 | E89: 12,111,872 | F89: 738 | G89: =F89+G90 -> 56,926 | H89: 1,031,543
A90: 68 | B90: 0.01292 | C90: 61,157 | D90: =C90+D91 -> 1,027,029 | E90: 11,022,640 | F90: 788 | G90: =F90+G91 -> 56,188 | H90: 974,618
A91: 69 | B91: 0.01408 | C91: 60,067 | D91: =C91+D92 -> 965,872 | E91: 9,995,611 | F91: 844 | G91: =F91+G92 -> 55,399 | H91: 918,430
A92: 70 | B92: 0.01544 | C92: 58,926 | D92: =C92+D93 -> 905,805 | E92: 9,029,739 | F92: 908 | G92: =F92+G93 -> 54,556 | H92: 863,031
A93: 71 | B93: 0.01702 | C93: 57,728 | D93: =C93+D94 -> 846,879 | E93: 8,123,934 | F93: 980 | G93: =F93+G94 -> 53,648 | H93: 808,475
A94: 72 | B94: 0.01886 | C94: 56,463 | D94: =C94+D95 -> 789,151 | E94: 7,277,055 | F94: 1,062 | G94: =F94+G95 -> 52,668 | H94: 754,827
A95: 73 | B95: 0.02099 | C95: 55,122 | D95: =C95+D96 -> 732,688 | E95: 6,487,903 | F95: 1,154 | G95: =F95+G96 -> 51,606 | H95: 702,159
A96: 74 | B96: 0.02346 | C96: 53,697 | D96: =C96+D97 -> 677,566 | E96: 5,755,215 | F96: 1,257 | G96: =F96+G97 -> 50,452 | H96: 650,553
A97: 75 | B97: 0.02637 | C97: 52,176 | D97: =C97+D98 -> 623,869 | E97: 5,077,650 | F97: 1,372 | G97: =F97+G98 -> 49,195 | H97: 600,101
A98: 76 | B98: 0.02978 | C98: 50,548 | D98: =C98+D99 -> 571,692 | E98: 4,453,781 | F98: 1,502 | G98: =F98+G99 -> 47,823 | H98: 550,906
A99: 77 | B99: 0.03381 | C99: 48,798 | D99: =C99+D100 -> 521,145 | E99: 3,882,089 | F99: 1,646 | G99: =F99+G100 -> 46,321 | H99: 503,084
A100: 78 | B100: 0.03853 | C100: 46,914 | D100: =C100+D101 -> 472,346 | E100: 3,360,944 | F100: 1,803 | G100: =F100+G101 -> 44,675 | H100: 456,763
A101: 79 | B101: 0.04396 | C101: 44,882 | D101: =C101+D102 -> 425,432 | E101: 2,888,598 | F101: 1,968 | G101: =F101+G102 -> 42,872 | H101: 412,087
A102: 80 | B102: 0.05006 | C102: 42,695 | D102: =C102+D103 -> 380,550 | E102: 2,463,166 | F102: 2,132 | G102: =F102+G103 -> 40,904 | H102: 369,215
A103: 81 | B103: 0.05673 | C103: 40,356 | D103: =C103+D104 -> 337,855 | E103: 2,082,616 | F103: 2,284 | G103: =F103+G104 -> 38,772 | H103: 328,311
A104: 82 | B104: 0.06402 | C104: 37,878 | D104: =C104+D105 -> 297,498 | E104: 1,744,761 | F104: 2,419 | G104: =F104+G105 -> 36,488 | H104: 289,539
A105: 83 | B105: 0.07235 | C105: 35,276 | D105: =C105+D106 -> 259,621 | E105: 1,447,263 | F105: 2,546 | G105: =F105+G106 -> 34,069 | H105: 253,051
A106: 84 | B106: 0.08177 | C106: 32,561 | D106: =C106+D107 -> 224,344 | E106: 1,187,642 | F106: 2,656 | G106: =F106+G107 -> 31,524 | H106: 218,981
A107: 85 | B107: 0.09175 | C107: 29,750 | D107: =C107+D108 -> 191,783 | E107: 963,297 | F107: 2,723 | G107: =F107+G108 -> 28,868 | H107: 187,458
A108: 86 | B108: 0.10269 | C108: 26,886 | D108: =C108+D109 -> 162,033 | E108: 771,514 | F108: 2,754 | G108: =F108+G109 -> 26,145 | H108: 158,590
A109: 87 | B109: 0.11466 | C109: 24,005 | D109: =C109+D110 -> 135,147 | E109: 609,481 | F109: 2,746 | G109: =F109+G110 -> 23,391 | H109: 132,445
A110: 88 | B110: 0.12775 | C110: 21,147 | D110: =C110+D111 -> 111,142 | E110: 474,334 | F110: 2,695 | G110: =F110+G111 -> 20,645 | H110: 109,054
A111: 89 | B111: 0.14204 | C111: 18,354 | D111: =C111+D112 -> 89,995 | E111: 363,191 | F111: 2,600 | G111: =F111+G112 -> 17,951 | H111: 88,409
A112: 90 | B112: 0.15760 | C112: 15,668 | D112: =C112+D113 -> 71,642 | E112: 273,196 | F112: 2,463 | G112: =F112+G113 -> 15,350 | H112: 70,458
A113: 91 | B113: 0.17453 | C113: 13,133 | D113: =C113+D114 -> 55,974 | E113: 201,554 | F113: 2,286 | G113: =F113+G114 -> 12,887 | H113: 55,108
A114: 92 | B114: 0.19290 | C114: 10,787 | D114: =C114+D115 -> 42,840 | E114: 145,581 | F114: 2,076 | G114: =F114+G115 -> 10,600 | H114: 42,221
A115: 93 | B115: 0.21279 | C115: 8,663 | D115: =C115+D116 -> 32,053 | E115: 102,740 | F115: 1,839 | G115: =F115+G116 -> 8,525 | H115: 31,621
A116: 94 | B116: 0.23426 | C116: 6,786 | D116: =C116+D117 -> 23,390 | E116: 70,687 | F116: 1,586 | G116: =F116+G117 -> 6,686 | H116: 23,096
A117: 95 | B117: 0.25739 | C117: 5,170 | D117: =C117+D118 -> 16,604 | E117: 47,297 | F117: 1,327 | G117: =F117+G118 -> 5,100 | H117: 16,410
A118: 96 | B118: 0.28222 | C118: 3,820 | D118: =C118+D119 -> 11,434 | E118: 30,693 | F118: =C118*B118/SQRT(1+$K$26) -> 1,075 | G118: =F118+G119 -> 3,773 | H118: 11,309
A119: 97 | B119: 0.30878 | C119: =C118*(1-B118)/(1+$K$26) -> 2,729 | D119: =C119+D120 -> 7,614 | E119: 19,259 | F119: 840 | G119: =F119+G120 -> 2,697 | H119: 7,537
A120: 98 | B120: 0.33708 | C120: 1,877 | D120: =C120+D121 -> 4,885 | E120: 11,646 | F120: 631 | G120: =F120+G121 -> 1,857 | H120: 4,839
A121: 99 | B121: 0.36710 | C121: 1,238 | D121: =C121+D122 -> 3,008 | E121: 6,760 | F121: 453 | G121: =F121+G122 -> 1,226 | H121: 2,982
A122: 100 | B122: 0.39881 | C122: 780 | D122: =C122+D123 -> 1,771 | E122: 3,752 | F122: 310 | G122: =F122+G123 -> 773 | H122: 1,756
A123: 101 | B123: 0.43210 | C123: 466 | D123: =C123+D124 -> 991 | E123: 1,981 | F123: 201 | G123: =F123+G124 -> 463 | H123: 984
A124: 102 | B124: 0.46686 | C124: 264 | D124: =C124+D125 -> 525 | E124: 990 | F124: 123 | G124: =F124+G125 -> 262 | H124: 521
A125: 103 | B125: 0.50292 | C125: 140 | D125: =C125+D126 -> 261 | E125: 466 | F125: 70 | G125: =F125+G126 -> 139 | H125: 260
A126: 104 | B126: 0.54006 | C126: 69 | D126: =C126+D127 -> 121 | E126: 204 | F126: 37 | G126: =F126+G127 -> 69 | H126: 121
A127: 105 | B127: 0.57800 | C127: 32 | D127: =C127+D128 -> 52 | E127: 83 | F127: 18 | G127: =F127+G128 -> 31 | H127: 52
A128: 106 | B128: 0.61642 | C128: 13 | D128: =C128+D129 -> 21 | E128: 31 | F128: 8 | G128: =F128+G129 -> 13 | H128: 21
A129: 107 | B129: 0.65494 | C129: 5 | D129: =C129+D130 -> 7 | E129: 10 | F129: 3 | G129: =F129+G130 -> 5 | H129: 7
A130: 108 | B130: 0.69314 | C130: =C129*(1-B129)/(1+$K$26) -> 2 | D130: =C130+D131 -> 2 | E130: =D130+E131 -> 3 | F130: =C130*B130/SQRT(1+$K$26) -> 1 | G130: =F130+G131 -> 2 | H130: =G130+H131 -> 2
A131: 109 | B131: 1.00000 | C131: 1 | D131: 1 | E131: 1 | F131: 1 | G131: 1 | H131: 1
A132: 110 | B132: 1.00000 | C132: 0 | D132: 0 | E132: 0 | F132: 0 | G132: 0 | H132: 0

Sheet コード
A1: '生命保険数理で便利な関数のマクロ
A3: '縦に並んだ計算基数 Dx, Nx (x=0,1,2,…)に対して、x歳n年の期始払有期生命年金現価を計算する。年間の分割支払の回数kを指定できる。
A4: Function LPV(Dx As Range, Nx As Range, x As Integer, n As Integer, Optional k As Integer = 1)
A5: If Not Dx.Cells(x + 1, 1) = 0 Then
A6: LPV = (Nx.Cells(x + 1, 1) - Nx.Cells(x + n + 1, 1)) / Dx.Cells(x + 1, 1)
A7: If Not k = 1 Then
A8: LPV = LPV - ((k - 1) / (2 * k)) * (1 - Dx.Cells(x + n + 1, 1) / Dx.Cells(x + 1, 1))
A9: Else: End If
A10: Else: LPV = 0
A11: End If
A12: End Function
A14: '縦に並んだ計算基数 Dx, Mx (x=0,1,2,…)に対して、x歳n年の定期保険等の一時払純保険料を計算する。nを省略すると 保険期間終身となる。Mxに代えて「ΣDx × 入院発生率 ×入院日数」とすると、医療保険の一時払純保険料も計算できる。
A15: Function SPDB(Dx As Range, MX As Range, x As Integer, Optional n As Integer = -1)
A16: If Not Dx.Cells(x + 1, 1) = 0 Then
A17: If n < 0 Then
A18: SPDB = MX.Cells(x + 1, 1) / Dx.Cells(x + 1, 1)
A19: Else:
A20: SPDB = (MX.Cells(x + 1, 1) - MX.Cells(x + n + 1, 1)) / Dx.Cells(x + 1, 1)
A21: End If
A22: Else: SPDB = 0
A23: End If
A24: End Function
A26: '縦に並んだ計算基数 Dx (x=0,1,2,…)に対して、x歳n年の生存保険の一時払純保険料を計算する。
A27: Function SPLB(Dx As Range, x As Integer, n As Integer)
A28: If Not Dx.Cells(x + 1, 1) = 0 Then
A29: SPLB = Dx.Cells(x + n + 1, 1) / Dx.Cells(x + 1, 1)
A30: Else: SPLB = 0
A31: End If
A32: End Function
A34: '縦に並んだ計算基数 Dx, Mx, Rx (x=0,1,2,…)に対して、x歳n年の逓増定期保険または逓減定期保険の一時払純保険料を計算する。
A35: '初年度の保険金額s、毎年の保険金額の増減幅d、年間の増減の回数kを指定できる。
A36: Function SPITDT(Dx As Range, MX As Range, Rx As Range, x As Integer, n As Integer, _
A37: Optional s As Double = 1, Optional d As Double = 0, Optional k As Integer = 1)
A38: If Not Dx.Cells(x + 1, 1) = 0 Then
A39: SPITDT = (s - d) * (MX.Cells(x + 1, 1) - MX.Cells(x + n + 1, 1))
A40: SPITDT = SPITDT + d * (Rx.Cells(x + 1, 1) - Rx.Cells(x + n + 1, 1) - n * MX.Cells(x + n + 1, 1))
A41: If Not k = 1 Then
A42: SPITDT = SPITDT - Abs(d) * ((k - 1) / (2 * k)) * (MX.Cells(x + 1, 1) - MX.Cells(x + n + 1, 1))
A43: Else: End If
A44: SPITDT = SPITDT / Dx.Cells(x + 1, 1)
A45: Else: SPITDT = 0
A46: End If
A47: End Function
A49: '縦に並んだ数列 Ax, Bx (x=0,1,2,…)と特定のx,yに対して ( Bx - By ) / Ax を計算する。yを省略すると Bx / Ax を計算できる。
A50: Function XDIV(Ai As Range, Bi As Range, x As Integer, Optional y As Integer = -1)
A51: If Not Ai.Cells(x + 1, 1) = 0 Then
A52: If y < 0 Then
A53: XDIV = Bi.Cells(x + 1, 1) / Ai.Cells(x + 1, 1)
A54: Else:
A55: XDIV = (Bi.Cells(x + 1, 1) - Bi.Cells(y + 1, 1)) / Ai.Cells(x + 1, 1)
A56: End If
A57: Else: XDIV = 0
A58: End If
A59: End Function
A61: '縦に並んだ数列 Ax (x=0,1,2,…)と特定のx,yに対して Ay / Ax を計算する。
A62: Function VDIV(Ai As Range, x As Integer, y As Integer)
A63: If Not Ai.Cells(x + 1, 1) = 0 Then
A64: VDIV = Ai.Cells(y + 1, 1) / Ai.Cells(x + 1, 1)
A65: Else: VDIV = 0
A66: End If
A67: End Function
